{"text_format":"1","workbook":"xlsx","n_sheets":5,"sheets":["Общий брак ","Буйко","Булавский","Хомич","Сандульская"],"not_rendered":{"charts":11,"images":0,"macros":1,"external_links":0,"defined_names":0,"comments":0,"pivot_tables":0},"unopened":[],"bounds":{"document_bytes":16777216,"sheet_cells":100000,"rows_first":2000,"rows_last":500,"rows_between":2000,"halvings":0,"cell_chars":16384,"cell_head_chars":4096},"cells_cut":0,"cells_raw":0,"read":"whole","date_system":"1904"}

{"sheet":"Общий брак ","index":0,"n_rows":82,"n_cols":12,"rows_kept":82,"cut":false,"hidden":false,"merged":[[1,11,2,11],[0,2,0,6],[42,2,42,6],[43,1,43,4],[43,5,44,5],[1,1,1,4],[1,6,1,9]]}
["                                                           ЯНВАРЬ 2013 г.",null,"………………….2015 г."]
[null,"Массовые виды",null,null,null,null,"Документная",null,null,null,null,"ИТОГО, кг."]
["вид несоответствий ","Буйко","Булавский А.В.","Хомич Н.Н.","Сандульская Л.А.",null,"Кузьбар","Булавский А.В.","Хомич Н.Н.","Сандульская Л.А."]
["впитываемость",{"$f":"Буйко!M7","v":100},{"$f":"Булавский!M7","v":0},{"$f":"Хомич!M7","v":0},{"$f":"Сандульская!M7","v":0},{"$f":"SUM(B4:E4)","v":100},{"$f":"Буйко!AA7","v":5},{"$f":"Булавский!AA7","v":0},{"$f":"Хомич!AA7","v":0},{"$f":"Сандульская!AA7","v":0},{"$f":"SUM(G4:J4)","v":5},{"$f":"SUM(K4+F4)","v":105}]
["Коробатая",{"$f":"Буйко!M16","v":44},{"$f":"Булавский!M16","v":0},{"$f":"Хомич!M16","v":0},{"$f":"Сандульская!M16","v":0},{"$f":"SUM(B5:E5)","v":44},{"$f":"Буйко!AA25","v":0},{"$f":"Булавский!AA25","v":0},{"$f":"Хомич!AA25","v":0},{"$f":"Сандульская!AA25","v":0},{"$f":"SUM(G5:J5)","v":0},{"$f":"SUM(K5+F5)","v":44}]
["Деформация рулона, Мягкий край рулона",{"$f":"Буйко!M12","v":25},{"$f":"Булавский!M12","v":0},{"$f":"Хомич!M12","v":0},{"$f":"Сандульская!M12","v":0},{"$f":"SUM(B6:E6)","v":25},{"$f":"Буйко!AA29","v":0},{"$f":"Булавский!AA29","v":0},{"$f":"Хомич!AA29","v":0},{"$f":"Сандульская!AA29","v":0},{"$f":"SUM(G6:J6)","v":0},{"$f":"SUM(K6+F6)","v":25}]
["Зольность не соотв.ТУ",{"$f":"Буйко!M14","v":15},{"$f":"Булавский!M14","v":0},{"$f":"Хомич!M14","v":0},{"$f":"Сандульская!M14","v":0},{"$f":"SUM(B7:E7)","v":15},{"$f":"Буйко!AA27","v":0},{"$f":"Булавский!AA27","v":0},{"$f":"Хомич!AA27","v":0},{"$f":"Сандульская!AA27","v":0},{"$f":"SUM(G7:J7)","v":0},{"$f":"SUM(K7+F7)","v":15}]
["Формат не соотв. размеру",{"$f":"Буйко!M37","v":0},{"$f":"Булавский!M37","v":0},{"$f":"Хомич!M37","v":0},{"$f":"Сандульская!M37","v":0},{"$f":"SUM(B8:E8)","v":0},{"$f":"Буйко!AA4","v":4},{"$f":"Булавский!AA4","v":0},{"$f":"Хомич!AA4","v":0},{"$f":"Сандульская!AA4","v":0},{"$f":"SUM(G8:J8)","v":4},{"$f":"SUM(K8+F8)","v":4}]
["Спутник",{"$f":"Буйко!M36","v":0},{"$f":"Булавский!M36","v":0},{"$f":"Хомич!M36","v":0},{"$f":"Сандульская!M36","v":0},{"$f":"SUM(B9:E9)","v":0},{"$f":"Буйко!AA3","v":0},{"$f":"Булавский!AA3","v":0},{"$f":"Хомич!AA3","v":0},{"$f":"Сандульская!AA3","v":0},{"$f":"SUM(G9:J9)","v":0},{"$f":"SUM(K9+F9)","v":0}]
["Сорность",{"$f":"Буйко!M35","v":0},{"$f":"Булавский!M35","v":0},{"$f":"Хомич!M35","v":0},{"$f":"Сандульская!M35","v":0},{"$f":"SUM(B10:E10)","v":0},{"$f":"Буйко!AA5","v":0},{"$f":"Булавский!AA5","v":0},{"$f":"Хомич!AA5","v":0},{"$f":"Сандульская!AA5","v":0},{"$f":"SUM(G10:J10)","v":0},{"$f":"SUM(K10+F10)","v":0}]
["Складка",{"$f":"Буйко!M34","v":0},{"$f":"Булавский!M34","v":0},{"$f":"Хомич!M34","v":0},{"$f":"Сандульская!M34","v":0},{"$f":"SUM(B11:E11)","v":0},{"$f":"Буйко!AA6","v":0},{"$f":"Булавский!AA6","v":0},{"$f":"Хомич!AA6","v":0},{"$f":"Сандульская!AA6","v":0},{"$f":"SUM(G11:J11)","v":0},{"$f":"SUM(K11+F11)","v":0}]
["Ребристость",{"$f":"Буйко!M33","v":0},{"$f":"Булавский!M33","v":0},{"$f":"Хомич!M33","v":0},{"$f":"Сандульская!M33","v":0},{"$f":"SUM(B12:E12)","v":0},{"$f":"Буйко!AA8","v":0},{"$f":"Булавский!AA8","v":0},{"$f":"Хомич!AA8","v":0},{"$f":"Сандульская!AA8","v":0},{"$f":"SUM(G12:J12)","v":0},{"$f":"SUM(K12+F12)","v":0}]
["разнооттеночность",{"$f":"Буйко!M32","v":0},{"$f":"Булавский!M32","v":0},{"$f":"Хомич!M32","v":0},{"$f":"Сандульская!M32","v":0},{"$f":"SUM(B13:E13)","v":0},{"$f":"Буйко!AA9","v":0},{"$f":"Булавский!AA9","v":0},{"$f":"Хомич!AA9","v":0},{"$f":"Сандульская!AA9","v":0},{"$f":"SUM(G13:J13)","v":0},{"$f":"SUM(K13+F13)","v":0}]
["Пятна от пены",{"$f":"Буйко!M31","v":0},{"$f":"Булавский!M31","v":0},{"$f":"Хомич!M31","v":0},{"$f":"Сандульская!M31","v":0},{"$f":"SUM(B14:E14)","v":0},{"$f":"Буйко!AA10","v":0},{"$f":"Булавский!AA10","v":0},{"$f":"Хомич!AA10","v":0},{"$f":"Сандульская!AA10","v":0},{"$f":"SUM(G14:J14)","v":0},{"$f":"SUM(K14+F14)","v":0}]
["Пятна от каландра",{"$f":"Буйко!M30","v":0},{"$f":"Булавский!M30","v":0},{"$f":"Хомич!M30","v":0},{"$f":"Сандульская!M30","v":0},{"$f":"SUM(B15:E15)","v":0},{"$f":"Буйко!AA11","v":0},{"$f":"Булавский!AA11","v":0},{"$f":"Хомич!AA11","v":0},{"$f":"Сандульская!AA11","v":0},{"$f":"SUM(G15:J15)","v":0},{"$f":"SUM(K15+F15)","v":0}]
["Пусковая",{"$f":"Буйко!M29","v":0},{"$f":"Булавский!M29","v":0},{"$f":"Хомич!M29","v":0},{"$f":"Сандульская!M29","v":0},{"$f":"SUM(B16:E16)","v":0},{"$f":"Буйко!AA12","v":0},{"$f":"Булавский!AA12","v":0},{"$f":"Хомич!AA12","v":0},{"$f":"Сандульская!AA12","v":0},{"$f":"SUM(G16:J16)","v":0},{"$f":"SUM(K16+F16)","v":0}]
["Прокл.не соотв.ТУ",{"$f":"Буйко!M28","v":0},{"$f":"Булавский!M28","v":0},{"$f":"Хомич!M28","v":0},{"$f":"Сандульская!M28","v":0},{"$f":"SUM(B17:E17)","v":0},{"$f":"Буйко!AA13","v":0},{"$f":"Булавский!AA13","v":0},{"$f":"Хомич!AA13","v":0},{"$f":"Сандульская!AA13","v":0},{"$f":"SUM(G17:J17)","v":0},{"$f":"SUM(K17+F17)","v":0}]
["Продушина",{"$f":"Буйко!M27","v":0},{"$f":"Булавский!M27","v":0},{"$f":"Хомич!M27","v":0},{"$f":"Сандульская!M27","v":0},{"$f":"SUM(B18:E18)","v":0},{"$f":"Буйко!AA14","v":0},{"$f":"Булавский!AA14","v":0},{"$f":"Хомич!AA14","v":0},{"$f":"Сандульская!AA14","v":0},{"$f":"SUM(G18:J18)","v":0},{"$f":"SUM(K18+F18)","v":0}]
["Переходная",{"$f":"Буйко!M26","v":0},{"$f":"Булавский!M26","v":0},{"$f":"Хомич!M26","v":0},{"$f":"Сандульская!M26","v":0},{"$f":"SUM(B19:E19)","v":0},{"$f":"Буйко!AA15","v":0},{"$f":"Булавский!AA15","v":0},{"$f":"Хомич!AA15","v":0},{"$f":"Сандульская!AA15","v":0},{"$f":"SUM(G19:J19)","v":0},{"$f":"SUM(K19+F19)","v":0}]
["Обрывы",{"$f":"Буйко!M25","v":0},{"$f":"Булавский!M25","v":0},{"$f":"Хомич!M25","v":0},{"$f":"Сандульская!M25","v":0},{"$f":"SUM(B20:E20)","v":0},{"$f":"Буйко!AA16","v":0},{"$f":"Булавский!AA16","v":0},{"$f":"Хомич!AA16","v":0},{"$f":"Сандульская!AA16","v":0},{"$f":"SUM(G20:J20)","v":0},{"$f":"SUM(K20+F20)","v":0}]
["Нет защиты",{"$f":"Буйко!M24","v":0},{"$f":"Булавский!M24","v":0},{"$f":"Хомич!M24","v":0},{"$f":"Сандульская!M24","v":0},{"$f":"SUM(B21:E21)","v":0},{"$f":"Буйко!AA17","v":0},{"$f":"Булавский!AA17","v":0},{"$f":"Хомич!AA17","v":0},{"$f":"Сандульская!AA17","v":0},{"$f":"SUM(G21:J21)","v":0},{"$f":"SUM(K21+F21)","v":0}]
["Нет защитного волокна",{"$f":"Буйко!M23","v":0},{"$f":"Булавский!M23","v":0},{"$f":"Хомич!M23","v":0},{"$f":"Сандульская!M23","v":0},{"$f":"SUM(B22:E22)","v":0},{"$f":"Буйко!AA18","v":0},{"$f":"Булавский!AA18","v":0},{"$f":"Хомич!AA18","v":0},{"$f":"Сандульская!AA18","v":0},{"$f":"SUM(G22:J22)","v":0},{"$f":"SUM(K22+F22)","v":0}]
["Неравномерный просвет",{"$f":"Буйко!M22","v":0},{"$f":"Булавский!M22","v":0},{"$f":"Хомич!M22","v":0},{"$f":"Сандульская!M22","v":0},{"$f":"SUM(B23:E23)","v":0},{"$f":"Буйко!AA19","v":0},{"$f":"Булавский!AA19","v":0},{"$f":"Хомич!AA19","v":0},{"$f":"Сандульская!AA19","v":0},{"$f":"SUM(G23:J23)","v":0},{"$f":"SUM(K23+F23)","v":0}]
["Недомол",{"$f":"Буйко!M21","v":0},{"$f":"Булавский!M21","v":0},{"$f":"Хомич!M21","v":0},{"$f":"Сандульская!M21","v":0},{"$f":"SUM(B24:E24)","v":0},{"$f":"Буйко!AA20","v":0},{"$f":"Булавский!AA20","v":0},{"$f":"Хомич!AA20","v":0},{"$f":"Сандульская!AA20","v":0},{"$f":"SUM(G24:J24)","v":0},{"$f":"SUM(K24+F24)","v":0}]
["Не соотв.по цвету",{"$f":"Буйко!M20","v":0},{"$f":"Булавский!M20","v":0},{"$f":"Хомич!M20","v":0},{"$f":"Сандульская!M20","v":0},{"$f":"SUM(B25:E25)","v":0},{"$f":"Буйко!AA21","v":0},{"$f":"Булавский!AA21","v":0},{"$f":"Хомич!AA21","v":0},{"$f":"Сандульская!AA21","v":0},{"$f":"SUM(G25:J25)","v":0},{"$f":"SUM(K25+F25)","v":0}]
["Надрывы",{"$f":"Буйко!M19","v":0},{"$f":"Булавский!M19","v":0},{"$f":"Хомич!M19","v":0},{"$f":"Сандульская!M19","v":0},{"$f":"SUM(B26:E26)","v":0},{"$f":"Буйко!AA22","v":0},{"$f":"Булавский!AA22","v":0},{"$f":"Хомич!AA22","v":0},{"$f":"Сандульская!AA22","v":0},{"$f":"SUM(G26:J26)","v":0},{"$f":"SUM(K26+F26)","v":0}]
["Мало защитного волокна",{"$f":"Буйко!M18","v":0},{"$f":"Булавский!M18","v":0},{"$f":"Хомич!M18","v":0},{"$f":"Сандульская!M18","v":0},{"$f":"SUM(B27:E27)","v":0},{"$f":"Буйко!AA23","v":0},{"$f":"Булавский!AA23","v":0},{"$f":"Хомич!AA23","v":0},{"$f":"Сандульская!AA23","v":0},{"$f":"SUM(G27:J27)","v":0},{"$f":"SUM(K27+F27)","v":0}]
["Линейная деф.не соотв.ТУ",{"$f":"Буйко!M17","v":0},{"$f":"Булавский!M17","v":0},{"$f":"Хомич!M17","v":0},{"$f":"Сандульская!M17","v":0},{"$f":"SUM(B28:E28)","v":0},{"$f":"Буйко!AA24","v":0},{"$f":"Булавский!AA24","v":0},{"$f":"Хомич!AA24","v":0},{"$f":"Сандульская!AA24","v":0},{"$f":"SUM(G28:J28)","v":0},{"$f":"SUM(K28+F28)","v":0}]
["Колебания массы",{"$f":"Буйко!M15","v":0},{"$f":"Булавский!M15","v":0},{"$f":"Хомич!M15","v":0},{"$f":"Сандульская!M15","v":0},{"$f":"SUM(B29:E29)","v":0},{"$f":"Буйко!AA26","v":0},{"$f":"Булавский!AA26","v":0},{"$f":"Хомич!AA26","v":0},{"$f":"Сандульская!AA26","v":0},{"$f":"SUM(G29:J29)","v":0},{"$f":"SUM(K29+F29)","v":0}]
["Дыры",{"$f":"Буйко!M13","v":0},{"$f":"Булавский!M13","v":0},{"$f":"Хомич!M13","v":0},{"$f":"Сандульская!M13","v":0},{"$f":"SUM(B30:E30)","v":0},{"$f":"Буйко!AA28","v":0},{"$f":"Булавский!AA28","v":0},{"$f":"Хомич!AA28","v":0},{"$f":"Сандульская!AA28","v":0},{"$f":"SUM(G30:J30)","v":0},{"$f":"SUM(K30+F30)","v":0}]
["Грязные полосы,пятна ",{"$f":"Буйко!M11","v":0},{"$f":"Булавский!M11","v":0},{"$f":"Хомич!M11","v":0},{"$f":"Сандульская!M11","v":0},{"$f":"SUM(B31:E31)","v":0},{"$f":"Буйко!AA30","v":0},{"$f":"Булавский!AA30","v":0},{"$f":"Хомич!AA30","v":0},{"$f":"Сандульская!AA30","v":0},{"$f":"SUM(G31:J31)","v":0},{"$f":"SUM(K31+F31)","v":0}]
["Гладк.не соотв.ТУ",{"$f":"Буйко!M10","v":0},{"$f":"Булавский!M10","v":0},{"$f":"Хомич!M10","v":0},{"$f":"Сандульская!M10","v":0},{"$f":"SUM(B32:E32)","v":0},{"$f":"Буйко!AA31","v":0},{"$f":"Булавский!AA31","v":0},{"$f":"Хомич!AA31","v":0},{"$f":"Сандульская!AA31","v":0},{"$f":"SUM(G32:J32)","v":0},{"$f":"SUM(K32+F32)","v":0}]
["Выщипы",{"$f":"Буйко!M9","v":0},{"$f":"Булавский!M9","v":0},{"$f":"Хомич!M9","v":0},{"$f":"Сандульская!M9","v":0},{"$f":"SUM(B33:E33)","v":0},{"$f":"Буйко!AA32","v":0},{"$f":"Булавский!AA32","v":0},{"$f":"Хомич!AA32","v":0},{"$f":"Сандульская!AA32","v":0},{"$f":"SUM(G33:J33)","v":0},{"$f":"SUM(K33+F33)","v":0}]
["Выработка бассейнов",{"$f":"Буйко!M8","v":0},{"$f":"Булавский!M8","v":0},{"$f":"Хомич!M8","v":0},{"$f":"Сандульская!M8","v":0},{"$f":"SUM(B34:E34)","v":0},{"$f":"Буйко!AA33","v":0},{"$f":"Булавский!AA33","v":0},{"$f":"Хомич!AA33","v":0},{"$f":"Сандульская!AA33","v":0},{"$f":"SUM(G34:J34)","v":0},{"$f":"SUM(K34+F34)","v":0}]
["Воздушная складка",{"$f":"Буйко!M6","v":0},{"$f":"Булавский!M6","v":0},{"$f":"Хомич!M6","v":0},{"$f":"Сандульская!M6","v":0},{"$f":"SUM(B35:E35)","v":0},{"$f":"Буйко!AA34","v":0},{"$f":"Булавский!AA34","v":0},{"$f":"Хомич!AA34","v":0},{"$f":"Сандульская!AA34","v":0},{"$f":"SUM(G35:J35)","v":0},{"$f":"SUM(K35+F35)","v":0}]
["Брак по намотке,нет обрезки, махровый край",{"$f":"Буйко!M5","v":0},{"$f":"Булавский!M5","v":0},{"$f":"Хомич!M5","v":0},{"$f":"Сандульская!M5","v":0},{"$f":"SUM(B36:E36)","v":0},{"$f":"Буйко!AA35","v":0},{"$f":"Булавский!AA35","v":0},{"$f":"Хомич!AA35","v":0},{"$f":"Сандульская!AA35","v":0},{"$f":"SUM(G36:J36)","v":0},{"$f":"SUM(K36+F36)","v":0}]
["Kit не соотв.ТУ ",{"$f":"Буйко!M4","v":0},{"$f":"Булавский!M4","v":0},{"$f":"Хомич!M4","v":0},{"$f":"Сандульская!M4","v":0},{"$f":"SUM(B37:E37)","v":0},{"$f":"Буйко!AA36","v":0},{"$f":"Булавский!AA36","v":0},{"$f":"Хомич!AA36","v":0},{"$f":"Сандульская!AA36","v":0},{"$f":"SUM(G37:J37)","v":0},{"$f":"SUM(K37+F37)","v":0}]
["4 защитных волокна",{"$f":"Буйко!M3","v":0},{"$f":"Булавский!M3","v":0},{"$f":"Хомич!M3","v":0},{"$f":"Сандульская!M3","v":0},{"$f":"SUM(B38:E38)","v":0},{"$f":"Буйко!AA37","v":0},{"$f":"Булавский!AA37","v":0},{"$f":"Хомич!AA37","v":0},{"$f":"Сандульская!AA37","v":0},{"$f":"SUM(G38:J38)","v":0},{"$f":"SUM(K38+F38)","v":0}]
["количество несоответствий [Σ ]",{"$f":"SUM(B4:B38)","v":184},0,0,0,184,9,0,0,0,9,193]
["без пусковой, выраб.",{"$f":"SUM(B39)-SUM(B4:B5)","v":40},0,0,0,40,4,0,0,0,4,44]
[]
[]
["                                                           ЯНВАРЬ 2013 г.",null,"2015год"]
["2014год","Все виды бумаг",null,null,null,"ИТОГО, кг."]
["вид несоответствий ","Кузьбар","Булавский А.В.","Хомич Н.Н.","Сандульская Л.А."]
["Пусковая",{"$f":"SUM(B4+G4)","v":105},0,0,0,{"$f":"SUM(B46:E46)","v":105}]
["Выработка бассейнов",44,0,0,0,{"$f":"SUM(B47:E47)","v":44}]
["Переходная",25,0,0,0,{"$f":"SUM(B48:E48)","v":25}]
["Продушина",{"$f":"SUM(B7+G7)","v":15},{"$f":"SUM(C7+H7)","v":0},{"$f":"SUM(D7+I7)","v":0},{"$f":"SUM(E7+J7)","v":0},{"$f":"SUM(B49:E49)","v":15}]
["Складка",4,0,0,0,{"$f":"SUM(B50:E50)","v":4}]
["Ребристость",0,0,0,0,{"$f":"SUM(B51:E51)","v":0}]
["Сорность",0,0,0,0,0]
["Грязные полосы,пятна ",0,0,0,0,0]
["Дыры",0,0,0,0,0]
["Пятна от каландра",0,0,0,0,0]
["Деформация рулона, Мягкий край рулона",0,0,0,0,0]
["Колебания массы",0,0,0,0,0]
["Гладк.не соотв.ТУ",0,0,0,0,0]
["Прокл.не соотв.ТУ",0,0,0,0,0]
["Kit не соотв.ТУ ",0,0,0,0,0]
["Зольность не соотв.ТУ",0,0,0,0,0]
["Линейная деф.не соотв.ТУ",0,0,0,0,0]
["Формат не соотв. размеру",0,0,0,0,0]
["Брак по намотке,нет обрезки, махровый край",0,0,0,0,0]
["Надрывы",0,0,0,0,0]
["Спутник",0,0,0,0,0]
["Воздушная складка",0,0,0,0,0]
["Коробатая",0,0,0,0,0]
["Не прокрашенные пятна ",0,0,0,0,{"$f":"SUM(B69:E69)","v":0}]
["Выщипы",0,0,0,0,{"$f":"SUM(B70:E70)","v":0}]
["Недомол",0,0,0,0,{"$f":"SUM(B71:E71)","v":0}]
["Неравномерный просвет",0,0,0,0,{"$f":"SUM(B72:E72)","v":0}]
["Нет защиты",0,0,0,0,{"$f":"SUM(B73:E73)","v":0}]
["Обрывы",0,0,0,0,{"$f":"SUM(B74:E74)","v":0}]
["впитываемость",0,0,0,0,0]
["разнооттеночность",0,0,0,0,0]
["Нет защитного волокна",0,0,0,0,0]
["4 защитных волокна",0,0,0,0,0]
["Мало защитного волокна",0,0,0,0,0]
["Фон",{"$f":"SUM(B38+G38)","v":0},{"$f":"SUM(C38+H38)","v":0},{"$f":"SUM(D38+I38)","v":0},{"$f":"SUM(E38+J38)","v":0},{"$f":"SUM(B80:E80)","v":0}]
["количество несоответствий [Σ ]",{"$f":"SUM(B46:B80)","v":193},{"$f":"SUM(C46:C80)","v":0},{"$f":"SUM(D46:D80)","v":0},{"$f":"SUM(E46:E80)","v":0},{"$f":"SUM(F46:F80)","v":193}]
["без пусковой, выраб.",{"$f":"SUM(B81)-SUM(B46:B47)","v":44},{"$f":"SUM(C81)-SUM(C46:C47)","v":0},{"$f":"SUM(D81)-SUM(D46:D47)","v":0},{"$f":"SUM(E81)-SUM(E46:E47)","v":0},{"$f":"SUM(F81)-SUM(F46:F47)","v":44}]

{"sheet":"Буйко","index":1,"n_rows":38,"n_cols":27,"rows_kept":38,"cut":false,"hidden":false,"merged":[[1,1,1,11],[0,4,0,10],[0,18,0,24],[1,15,1,25],[0,26,0,27],[0,12,0,13]]}
[" 2015 г. БДМ № 1",null,null,null,"Буйко",null,null,null,null,null,null,null,null,null," 2015 г. БДМ № 1",null,null,null,"Буйко"]
["вид несоответствий ","массовые виды",null,null,null,null,null,null,null,null,null,null,null,null,"вид несоответствий ","документная"]
["4 защитных волокна",null,null,null,null,null,null,null,null,null,null,null,{"$f":"SUM(B3:L3)","v":0},null,"4 защитных волокна",null,null,null,null,null,null,null,null,null,null,null,{"$f":"SUM(P3:Z3)","v":0}]
["Формат не соотв. размеру",null,null,null,null,null,null,null,null,null,null,null,{"$f":"SUM(B4:L4)","v":0},null,"Kit не соотв.ТУ ",4,null,null,null,null,null,null,null,null,null,null,{"$f":"SUM(P4:Z4)","v":4}]
["Kit не соотв.ТУ ",null,null,null,null,null,null,null,null,null,null,null,{"$f":"SUM(B5:L5)","v":0},null,"Брак по намотке,нет обрезки, махровый край",null,null,null,null,null,null,null,null,null,null,null,0]
["Брак по намотке,нет обрезки, махровый край",null,null,null,null,null,null,null,null,null,null,null,0,null,"Воздушная складка",null,null,null,null,null,null,null,null,null,null,null,0]
["Воздушная складка",null,null,null,null,null,100,null,null,null,null,null,100,null,"впитываемость",5,null,null,null,null,null,null,null,null,null,null,5]
["впитываемость",null,null,null,null,null,null,null,null,null,null,null,0,null,"Выработка бассейнов",null,null,null,null,null,null,null,null,null,null,null,0]
["Выработка бассейнов",null,null,null,null,null,null,null,null,null,null,null,0,null,"Гладк.не соотв.ТУ",null,null,null,null,null,null,null,null,null,null,null,0]
["Гладк.не соотв.ТУ",null,null,null,null,null,null,null,null,null,null,null,0,null,"Грязные полосы,пятна ",null,null,null,null,null,null,null,null,null,null,null,0]
["Грязные полосы,пятна ",null,null,null,null,null,null,null,null,null,null,null,0,null,"Деформация рулона, Мягкий край рулона",null,null,null,null,null,null,null,null,null,null,null,0]
["Деформация рулона, Мягкий край рулона",null,null,25,null,null,null,null,null,null,null,null,25,null,"Дыры",null,null,null,null,null,null,null,null,null,null,null,0]
["Дыры",null,null,null,null,null,null,null,null,null,null,null,0,null,"Зольность не соотв.ТУ",null,null,null,null,null,null,null,null,null,null,null,0]
["Зольность не соотв.ТУ",15,null,null,null,null,null,null,null,null,null,null,15,null,"Колебания массы",null,null,null,null,null,null,null,null,null,null,null,0]
["Колебания массы",null,null,null,null,null,null,null,null,null,null,null,0,null,"Коробатая",null,null,null,null,null,null,null,null,null,null,null,0]
["Коробатая",null,null,44,null,null,null,null,null,null,null,null,44,null,"Линейная деф.не соотв.ТУ",null,null,null,null,null,null,null,null,null,null,null,0]
["Линейная деф.не соотв.ТУ",null,null,null,null,null,null,null,null,null,null,null,0,null,"Мало защитного волокна",null,null,null,null,null,null,null,null,null,null,null,0]
["Мало защитного волокна",null,null,null,null,null,null,null,null,null,null,null,0,null,"Надрывы",null,null,null,null,null,null,null,null,null,null,null,0]
["Надрывы",null,null,null,null,null,null,null,null,null,null,null,0,null,"Не прокрашенные пятна",null,null,null,null,null,null,null,null,null,null,null,0]
["Не прокрашенные пятна",null,null,null,null,null,null,null,null,null,null,null,0,null,"Недомол",null,null,null,null,null,null,null,null,null,null,null,0]
["Недомол",null,null,null,null,null,null,null,null,null,null,null,0,null,"Неравномерный просвет",null,null,null,null,null,null,null,null,null,null,null,0]
["Неравномерный просвет",null,null,null,null,null,null,null,null,null,null,null,0,null,"Нет защитного волокна",null,null,null,null,null,null,null,null,null,null,null,0]
["Нет защитного волокна",null,null,null,null,null,null,null,null,null,null,null,0,null,"Обрывы",null,null,null,null,null,null,null,null,null,null,null,0]
["Обрывы",null,null,null,null,null,null,null,null,null,null,null,0,null,"Переходная",null,null,null,null,null,null,null,null,null,null,null,0]
["Переходная",null,null,null,null,null,null,null,null,null,null,null,0,null,"Продушина",null,null,null,null,null,null,null,null,null,null,null,0]
["Продушина",null,null,null,null,null,null,null,null,null,null,null,0,null,"Прокл.не соотв.ТУ",null,null,null,null,null,null,null,null,null,null,null,0]
["Прокл.не соотв.ТУ",null,null,null,null,null,null,null,null,null,null,null,0,null,"Пузыри",null,null,null,null,null,null,null,null,null,null,null,0]
["Пузыри",null,null,null,null,null,null,null,null,null,null,null,0,null,"Пусковая",null,null,null,null,null,null,null,null,null,null,null,0]
["Пусковая",null,null,null,null,null,null,null,null,null,null,null,0,null,"Пятна ",null,null,null,null,null,null,null,null,null,null,null,0]
["Пятна ",null,null,null,null,null,null,null,null,null,null,null,0,null,"Пятнаот пены",null,null,null,null,null,null,null,null,null,null,null,0]
["Пятнаот пены",null,null,null,null,null,null,null,null,null,null,null,0,null,"разнооттеночность",null,null,null,null,null,null,null,null,null,null,null,0]
["разнооттеночность",null,null,null,null,null,null,null,null,null,null,null,0,null,"Ребристость",null,null,null,null,null,null,null,null,null,null,null,0]
["Ребристость",null,null,null,null,null,null,null,null,null,null,null,0,null,"Складка",null,null,null,null,null,null,null,null,null,null,null,0]
["Складка",null,null,null,null,null,null,null,null,null,null,null,0,null,"Скручивамость",null,null,null,null,null,null,null,null,null,null,null,0]
["Скручивамость",null,null,null,null,null,null,null,null,null,null,null,0,null,"Сорность",null,null,null,null,null,null,null,null,null,null,null,0]
["Сорность",null,null,null,null,null,null,null,null,null,null,null,0,null,"Спутник",null,null,null,null,null,null,null,null,null,null,null,0]
["Спутник",null,null,null,null,null,null,null,null,null,null,null,0,null,"Формат не соотв. размеру",null,null,null,null,null,null,null,null,null,null,null,0]
["количество несоответствий [Σ ]",{"$f":"SUM(B3:B37)","v":15},0,69,0,0,100,0,0,0,0,0,{"$f":"SUM(M3:M37)","v":184},null,"количество несоответствий [Σ ]",{"$f":"SUM(P3:P37)","v":9},0,0,0,0,0,0,0,0,0,0,{"$f":"SUM(AA3:AA37)","v":9}]

{"sheet":"Булавский","index":2,"n_rows":38,"n_cols":27,"rows_kept":38,"cut":false,"hidden":false,"merged":[[0,18,0,24],[1,15,1,25],[0,4,0,10],[0,12,0,13],[0,26,0,27],[1,1,1,11]]}
[" 2015 г. БДМ № 1",null,null,null,"Булавский",null,null,null,null,null,null,null,null,null," 2015 г. БДМ № 1",null,null,null,"Булавский"]
["вид несоответствий ","массовые виды",null,null,null,null,null,null,null,null,null,null,null,null,"вид несоответствий ","документная"]
["4 защитных волокна",null,null,null,null,null,null,null,null,null,null,null,{"$f":"SUM(B3:L3)","v":0},null,"4 защитных волокна",null,null,null,null,null,null,null,null,null,null,null,{"$f":"SUM(P3:Z3)","v":0}]
["Kit не соотв.ТУ ",null,null,null,null,null,null,null,null,null,null,null,{"$f":"SUM(B4:L4)","v":0},null,"Kit не соотв.ТУ ",null,null,null,null,null,null,null,null,null,null,null,{"$f":"SUM(P4:Z4)","v":0}]
["Брак по намотке,нет обрезки, махровый край",null,null,null,null,null,null,null,null,null,null,null,0,null,"Брак по намотке,нет обрезки, махровый край",null,null,null,null,null,null,null,null,null,null,null,0]
["Воздушная складка",null,null,null,null,null,null,null,null,null,null,null,0,null,"Воздушная складка",null,null,null,null,null,null,null,null,null,null,null,0]
["впитываемость",null,null,null,null,null,null,null,null,null,null,null,0,null,"впитываемость",null,null,null,null,null,null,null,null,null,null,null,0]
["Выработка бассейнов",null,null,null,null,null,null,null,null,null,null,null,0,null,"Выработка бассейнов",null,null,null,null,null,null,null,null,null,null,null,0]
["Гладк.не соотв.ТУ",null,null,null,null,null,null,null,null,null,null,null,0,null,"Гладк.не соотв.ТУ",null,null,null,null,null,null,null,null,null,null,null,0]
["Грязные полосы,пятна ",null,null,null,null,null,null,null,null,null,null,null,0,null,"Грязные полосы,пятна ",null,null,null,null,null,null,null,null,null,null,null,0]
["Деформация рулона, Мягкий край рулона",null,null,null,null,null,null,null,null,null,null,null,0,null,"Деформация рулона, Мягкий край рулона",null,null,null,null,null,null,null,null,null,null,null,0]
["Дыры",null,null,null,null,null,null,null,null,null,null,null,0,null,"Дыры",null,null,null,null,null,null,null,null,null,null,null,0]
["Зольность не соотв.ТУ",null,null,null,null,null,null,null,null,null,null,null,0,null,"Зольность не соотв.ТУ",null,null,null,null,null,null,null,null,null,null,null,0]
["Колебания массы",null,null,null,null,null,null,null,null,null,null,null,0,null,"Колебания массы",null,null,null,null,null,null,null,null,null,null,null,0]
["Коробатая",null,null,null,null,null,null,null,null,null,null,null,0,null,"Коробатая",null,null,null,null,null,null,null,null,null,null,null,0]
["Линейная деф.не соотв.ТУ",null,null,null,null,null,null,null,null,null,null,null,0,null,"Линейная деф.не соотв.ТУ",null,null,null,null,null,null,null,null,null,null,null,0]
["Мало защитного волокна",null,null,null,null,null,null,null,null,null,null,null,0,null,"Мало защитного волокна",null,null,null,null,null,null,null,null,null,null,null,0]
["Надрывы",null,null,null,null,null,null,null,null,null,null,null,0,null,"Надрывы",null,null,null,null,null,null,null,null,null,null,null,0]
["Не прокрашенные пятна",null,null,null,null,null,null,null,null,null,null,null,0,null,"Не прокрашенные пятна",null,null,null,null,null,null,null,null,null,null,null,0]
["Недомол",null,null,null,null,null,null,null,null,null,null,null,0,null,"Недомол",null,null,null,null,null,null,null,null,null,null,null,0]
["Неравномерный просвет",null,null,null,null,null,null,null,null,null,null,null,0,null,"Неравномерный просвет",null,null,null,null,null,null,null,null,null,null,null,0]
["Нет защитного волокна",null,null,null,null,null,null,null,null,null,null,null,0,null,"Нет защитного волокна",null,null,null,null,null,null,null,null,null,null,null,0]
["Обрывы",null,null,null,null,null,null,null,null,null,null,null,0,null,"Обрывы",null,null,null,null,null,null,null,null,null,null,null,0]
["Переходная",null,null,null,null,null,null,null,null,null,null,null,0,null,"Переходная",null,null,null,null,null,null,null,null,null,null,null,0]
["Продушина",null,null,null,null,null,null,null,null,null,null,null,0,null,"Продушина",null,null,null,null,null,null,null,null,null,null,null,0]
["Прокл.не соотв.ТУ",null,null,null,null,null,null,null,null,null,null,null,0,null,"Прокл.не соотв.ТУ",null,null,null,null,null,null,null,null,null,null,null,0]
["Пузыри",null,null,null,null,null,null,null,null,null,null,null,0,null,"Пузыри",null,null,null,null,null,null,null,null,null,null,null,0]
["Пусковая",null,null,null,null,null,null,null,null,null,null,null,0,null,"Пусковая",null,null,null,null,null,null,null,null,null,null,null,0]
["Пятна ",null,null,null,null,null,null,null,null,null,null,null,0,null,"Пятна ",null,null,null,null,null,null,null,null,null,null,null,0]
["Пятнаот пены",null,null,null,null,null,null,null,null,null,null,null,0,null,"Пятнаот пены",null,null,null,null,null,null,null,null,null,null,null,0]
["разнооттеночность",null,null,null,null,null,null,null,null,null,null,null,0,null,"разнооттеночность",null,null,null,null,null,null,null,null,null,null,null,0]
["Ребристость",null,null,null,null,null,null,null,null,null,null,null,0,null,"Ребристость",null,null,null,null,null,null,null,null,null,null,null,0]
["Складка",null,null,null,null,null,null,null,null,null,null,null,0,null,"Складка",null,null,null,null,null,null,null,null,null,null,null,0]
["Скручивамость",null,null,null,null,null,null,null,null,null,null,null,0,null,"Скручивамость",null,null,null,null,null,null,null,null,null,null,null,0]
["Сорность",null,null,null,null,null,null,null,null,null,null,null,0,null,"Сорность",null,null,null,null,null,null,null,null,null,null,null,0]
["Спутник",null,null,null,null,null,null,null,null,null,null,null,0,null,"Спутник",null,null,null,null,null,null,null,null,null,null,null,0]
["Формат не соотв. размеру",null,null,null,null,null,null,null,null,null,null,null,0,null,"Формат не соотв. размеру",null,null,null,null,null,null,null,null,null,null,null,0]
["количество несоответствий [Σ ]",{"$f":"SUM(B3:B37)","v":0},0,0,0,0,0,0,0,0,0,0,{"$f":"SUM(M3:M37)","v":0},null,"количество несоответствий [Σ ]",{"$f":"SUM(P3:P37)","v":0},0,0,0,0,0,0,0,0,0,0,{"$f":"SUM(AA3:AA37)","v":0}]

{"sheet":"Хомич","index":3,"n_rows":38,"n_cols":27,"rows_kept":38,"cut":false,"hidden":false,"merged":[[0,4,0,10],[0,12,0,13],[0,18,0,24],[0,26,0,27],[1,1,1,11],[1,15,1,25]]}
[" 2015 г. БДМ № 1",null,null,null,"Хомич",null,null,null,null,null,null,null,null,null," 2015 г. БДМ № 1",null,null,null,"Хомич"]
["вид несоответствий ","массовые виды",null,null,null,null,null,null,null,null,null,null,null,null,"вид несоответствий ","документная"]
["4 защитных волокна",null,null,null,null,null,null,null,null,null,null,null,{"$f":"SUM(B3:L3)","v":0},null,"4 защитных волокна",null,null,null,null,null,null,null,null,null,null,null,{"$f":"SUM(P3:Z3)","v":0}]
["Kit не соотв.ТУ ",null,null,null,null,null,null,null,null,null,null,null,{"$f":"SUM(B4:L4)","v":0},null,"Kit не соотв.ТУ ",null,null,null,null,null,null,null,null,null,null,null,{"$f":"SUM(P4:Z4)","v":0}]
["Брак по намотке,нет обрезки, махровый край",null,null,null,null,null,null,null,null,null,null,null,0,null,"Брак по намотке,нет обрезки, махровый край",null,null,null,null,null,null,null,null,null,null,null,0]
["Воздушная складка",null,null,null,null,null,null,null,null,null,null,null,0,null,"Воздушная складка",null,null,null,null,null,null,null,null,null,null,null,0]
["впитываемость",null,null,null,null,null,null,null,null,null,null,null,0,null,"впитываемость",null,null,null,null,null,null,null,null,null,null,null,0]
["Выработка бассейнов",null,null,null,null,null,null,null,null,null,null,null,0,null,"Выработка бассейнов",null,null,null,null,null,null,null,null,null,null,null,0]
["Гладк.не соотв.ТУ",null,null,null,null,null,null,null,null,null,null,null,0,null,"Гладк.не соотв.ТУ",null,null,null,null,null,null,null,null,null,null,null,0]
["Грязные полосы,пятна ",null,null,null,null,null,null,null,null,null,null,null,0,null,"Грязные полосы,пятна ",null,null,null,null,null,null,null,null,null,null,null,0]
["Деформация рулона, Мягкий край рулона",null,null,null,null,null,null,null,null,null,null,null,0,null,"Деформация рулона, Мягкий край рулона",null,null,null,null,null,null,null,null,null,null,null,0]
["Дыры",null,null,null,null,null,null,null,null,null,null,null,0,null,"Дыры",null,null,null,null,null,null,null,null,null,null,null,0]
["Зольность не соотв.ТУ",null,null,null,null,null,null,null,null,null,null,null,0,null,"Зольность не соотв.ТУ",null,null,null,null,null,null,null,null,null,null,null,0]
["Колебания массы",null,null,null,null,null,null,null,null,null,null,null,0,null,"Колебания массы",null,null,null,null,null,null,null,null,null,null,null,0]
["Коробатая",null,null,null,null,null,null,null,null,null,null,null,0,null,"Коробатая",null,null,null,null,null,null,null,null,null,null,null,0]
["Линейная деф.не соотв.ТУ",null,null,null,null,null,null,null,null,null,null,null,0,null,"Линейная деф.не соотв.ТУ",null,null,null,null,null,null,null,null,null,null,null,0]
["Мало защитного волокна",null,null,null,null,null,null,null,null,null,null,null,0,null,"Мало защитного волокна",null,null,null,null,null,null,null,null,null,null,null,0]
["Надрывы",null,null,null,null,null,null,null,null,null,null,null,0,null,"Надрывы",null,null,null,null,null,null,null,null,null,null,null,0]
["Не прокрашенные пятна",null,null,null,null,null,null,null,null,null,null,null,0,null,"Не прокрашенные пятна",null,null,null,null,null,null,null,null,null,null,null,0]
["Недомол",null,null,null,null,null,null,null,null,null,null,null,0,null,"Недомол",null,null,null,null,null,null,null,null,null,null,null,0]
["Неравномерный просвет",null,null,null,null,null,null,null,null,null,null,null,0,null,"Неравномерный просвет",null,null,null,null,null,null,null,null,null,null,null,0]
["Нет защитного волокна",null,null,null,null,null,null,null,null,null,null,null,0,null,"Нет защитного волокна",null,null,null,null,null,null,null,null,null,null,null,0]
["Обрывы",null,null,null,null,null,null,null,null,null,null,null,0,null,"Обрывы",null,null,null,null,null,null,null,null,null,null,null,0]
["Переходная",null,null,null,null,null,null,null,null,null,null,null,0,null,"Переходная",null,null,null,null,null,null,null,null,null,null,null,0]
["Продушина",null,null,null,null,null,null,null,null,null,null,null,0,null,"Продушина",null,null,null,null,null,null,null,null,null,null,null,0]
["Прокл.не соотв.ТУ",null,null,null,null,null,null,null,null,null,null,null,0,null,"Прокл.не соотв.ТУ",null,null,null,null,null,null,null,null,null,null,null,0]
["Пузыри",null,null,null,null,null,null,null,null,null,null,null,0,null,"Пузыри",null,null,null,null,null,null,null,null,null,null,null,0]
["Пусковая",null,null,null,null,null,null,null,null,null,null,null,0,null,"Пусковая",null,null,null,null,null,null,null,null,null,null,null,0]
["Пятна ",null,null,null,null,null,null,null,null,null,null,null,0,null,"Пятна ",null,null,null,null,null,null,null,null,null,null,null,0]
["Пятнаот пены",null,null,null,null,null,null,null,null,null,null,null,0,null,"Пятнаот пены",null,null,null,null,null,null,null,null,null,null,null,0]
["разнооттеночность",null,null,null,null,null,null,null,null,null,null,null,0,null,"разнооттеночность",null,null,null,null,null,null,null,null,null,null,null,0]
["Ребристость",null,null,null,null,null,null,null,null,null,null,null,0,null,"Ребристость",null,null,null,null,null,null,null,null,null,null,null,0]
["Складка",null,null,null,null,null,null,null,null,null,null,null,0,null,"Складка",null,null,null,null,null,null,null,null,null,null,null,0]
["Скручивамость",null,null,null,null,null,null,null,null,null,null,null,0,null,"Скручивамость",null,null,null,null,null,null,null,null,null,null,null,0]
["Сорность",null,null,null,null,null,null,null,null,null,null,null,0,null,"Сорность",null,null,null,null,null,null,null,null,null,null,null,0]
["Спутник",null,null,null,null,null,null,null,null,null,null,null,0,null,"Спутник",null,null,null,null,null,null,null,null,null,null,null,0]
["Формат не соотв. размеру",null,null,null,null,null,null,null,null,null,null,null,0,null,"Формат не соотв. размеру",null,null,null,null,null,null,null,null,null,null,null,0]
["количество несоответствий [Σ ]",{"$f":"SUM(B3:B37)","v":0},0,0,0,0,0,0,0,0,0,0,{"$f":"SUM(M3:M37)","v":0},null,"количество несоответствий [Σ ]",{"$f":"SUM(P3:P37)","v":0},0,0,0,0,0,0,0,0,0,0,{"$f":"SUM(AA3:AA37)","v":0}]

{"sheet":"Сандульская","index":4,"n_rows":38,"n_cols":27,"rows_kept":38,"cut":false,"hidden":false,"merged":[[0,4,0,10],[0,12,0,13],[0,18,0,24],[0,26,0,27],[1,1,1,11],[1,15,1,25]]}
[" 2015 г. БДМ № 1",null,null,null,"Сандульская",null,null,null,null,null,null,null,null,null," 2015 г. БДМ № 1",null,null,null,"Сандульская"]
["вид несоответствий ","массовые виды",null,null,null,null,null,null,null,null,null,null,null,null,"вид несоответствий ","документная"]
["4 защитных волокна",null,null,null,null,null,null,null,null,null,null,null,{"$f":"SUM(B3:L3)","v":0},null,"4 защитных волокна",null,null,null,null,null,null,null,null,null,null,null,{"$f":"SUM(P3:Z3)","v":0}]
["Kit не соотв.ТУ ",null,null,null,null,null,null,null,null,null,null,null,{"$f":"SUM(B4:L4)","v":0},null,"Kit не соотв.ТУ ",null,null,null,null,null,null,null,null,null,null,null,{"$f":"SUM(P4:Z4)","v":0}]
["Брак по намотке,нет обрезки, махровый край",null,null,null,null,null,null,null,null,null,null,null,0,null,"Брак по намотке,нет обрезки, махровый край",null,null,null,null,null,null,null,null,null,null,null,0]
["Воздушная складка",null,null,null,null,null,null,null,null,null,null,null,0,null,"Воздушная складка",null,null,null,null,null,null,null,null,null,null,null,0]
["впитываемость",null,null,null,null,null,null,null,null,null,null,null,0,null,"впитываемость",null,null,null,null,null,null,null,null,null,null,null,0]
["Выработка бассейнов",null,null,null,null,null,null,null,null,null,null,null,0,null,"Выработка бассейнов",null,null,null,null,null,null,null,null,null,null,null,0]
["Гладк.не соотв.ТУ",null,null,null,null,null,null,null,null,null,null,null,0,null,"Гладк.не соотв.ТУ",null,null,null,null,null,null,null,null,null,null,null,0]
["Грязные полосы,пятна ",null,null,null,null,null,null,null,null,null,null,null,0,null,"Грязные полосы,пятна ",null,null,null,null,null,null,null,null,null,null,null,0]
["Деформация рулона, Мягкий край рулона",null,null,null,null,null,null,null,null,null,null,null,0,null,"Деформация рулона, Мягкий край рулона",null,null,null,null,null,null,null,null,null,null,null,0]
["Дыры",null,null,null,null,null,null,null,null,null,null,null,0,null,"Дыры",null,null,null,null,null,null,null,null,null,null,null,0]
["Зольность не соотв.ТУ",null,null,null,null,null,null,null,null,null,null,null,0,null,"Зольность не соотв.ТУ",null,null,null,null,null,null,null,null,null,null,null,0]
["Колебания массы",null,null,null,null,null,null,null,null,null,null,null,0,null,"Колебания массы",null,null,null,null,null,null,null,null,null,null,null,0]
["Коробатая",null,null,null,null,null,null,null,null,null,null,null,0,null,"Коробатая",null,null,null,null,null,null,null,null,null,null,null,0]
["Линейная деф.не соотв.ТУ",null,null,null,null,null,null,null,null,null,null,null,0,null,"Линейная деф.не соотв.ТУ",null,null,null,null,null,null,null,null,null,null,null,0]
["Мало защитного волокна",null,null,null,null,null,null,null,null,null,null,null,0,null,"Мало защитного волокна",null,null,null,null,null,null,null,null,null,null,null,0]
["Надрывы",null,null,null,null,null,null,null,null,null,null,null,0,null,"Надрывы",null,null,null,null,null,null,null,null,null,null,null,0]
["Не прокрашенные пятна",null,null,null,null,null,null,null,null,null,null,null,0,null,"Не прокрашенные пятна",null,null,null,null,null,null,null,null,null,null,null,0]
["Недомол",null,null,null,null,null,null,null,null,null,null,null,0,null,"Недомол",null,null,null,null,null,null,null,null,null,null,null,0]
["Неравномерный просвет",null,null,null,null,null,null,null,null,null,null,null,0,null,"Неравномерный просвет",null,null,null,null,null,null,null,null,null,null,null,0]
["Нет защитного волокна",null,null,null,null,null,null,null,null,null,null,null,0,null,"Нет защитного волокна",null,null,null,null,null,null,null,null,null,null,null,0]
["Обрывы",null,null,null,null,null,null,null,null,null,null,null,0,null,"Обрывы",null,null,null,null,null,null,null,null,null,null,null,0]
["Переходная",null,null,null,null,null,null,null,null,null,null,null,0,null,"Переходная",null,null,null,null,null,null,null,null,null,null,null,0]
["Продушина",null,null,null,null,null,null,null,null,null,null,null,0,null,"Продушина",null,null,null,null,null,null,null,null,null,null,null,0]
["Прокл.не соотв.ТУ",null,null,null,null,null,null,null,null,null,null,null,0,null,"Прокл.не соотв.ТУ",null,null,null,null,null,null,null,null,null,null,null,0]
["Пузыри",null,null,null,null,null,null,null,null,null,null,null,0,null,"Пузыри",null,null,null,null,null,null,null,null,null,null,null,0]
["Пусковая",null,null,null,null,null,null,null,null,null,null,null,0,null,"Пусковая",null,null,null,null,null,null,null,null,null,null,null,0]
["Пятна ",null,null,null,null,null,null,null,null,null,null,null,0,null,"Пятна ",null,null,null,null,null,null,null,null,null,null,null,0]
["Пятнаот пены",null,null,null,null,null,null,null,null,null,null,null,0,null,"Пятнаот пены",null,null,null,null,null,null,null,null,null,null,null,0]
["разнооттеночность",null,null,null,null,null,null,null,null,null,null,null,0,null,"разнооттеночность",null,null,null,null,null,null,null,null,null,null,null,0]
["Ребристость",null,null,null,null,null,null,null,null,null,null,null,0,null,"Ребристость",null,null,null,null,null,null,null,null,null,null,null,0]
["Складка",null,null,null,null,null,null,null,null,null,null,null,0,null,"Складка",null,null,null,null,null,null,null,null,null,null,null,0]
["Скручивамость",null,null,null,null,null,null,null,null,null,null,null,0,null,"Скручивамость",null,null,null,null,null,null,null,null,null,null,null,0]
["Сорность",null,null,null,null,null,null,null,null,null,null,null,0,null,"Сорность",null,null,null,null,null,null,null,null,null,null,null,0]
["Спутник",null,null,null,null,null,null,null,null,null,null,null,0,null,"Спутник",null,null,null,null,null,null,null,null,null,null,null,0]
["Формат не соотв. размеру",null,null,null,null,null,null,null,null,null,null,null,0,null,"Формат не соотв. размеру",null,null,null,null,null,null,null,null,null,null,null,0]
["количество несоответствий [Σ ]",{"$f":"SUM(B3:B37)","v":0},0,0,0,0,0,0,0,0,0,0,{"$f":"SUM(M3:M37)","v":0},null,"количество несоответствий [Σ ]",{"$f":"SUM(P3:P37)","v":0},0,0,0,0,0,0,0,0,0,0,{"$f":"SUM(AA3:AA37)","v":0}]